bitfinex-derivatives/quotes_BTCF0:USTF0_20250906
["timestamp","ask_amount","ask_price","bid_price","bid_amount"]
[1757165044731,1.26861773,110960.0,110950.0,0.05300956]
[1757165044931,1.26861773,110960.0,110950.0,0.0806889]
[1757165045529,1.27861773,110960.0,110950.0,0.0806889]
[1757165056041,1.27861773,110960.0,110950.0,0.05300956]
[1757165057038,1.26861773,110960.0,110950.0,0.0806889]
[1757165059741,0.45317773,110960.0,110950.0,0.0806889]
[1757165059941,1.26837773,110960.0,110950.0,0.0806889]
[1757165061544,0.45317773,110960.0,110950.0,0.0806889]
[1757165061742,1.26837773,110960.0,110950.0,0.0806889]
[1757165065148,0.08446,110960.0,110950.0,0.0806889]
[1757165065446,1.27309773,110960.0,110950.0,0.0806889]
[1757165066447,1.27309773,110960.0,110950.0,0.06244934]
[1757165067044,0.45317773,110960.0,110950.0,0.06244934]
[1757165067245,0.08078,110960.0,110950.0,0.31244934]
[1757165067639,0.8147,110960.0,110950.0,0.31244934]
[1757165069443,1.22939768,110960.0,110950.0,0.72714702]
[1757165074350,1.23307768,110960.0,110950.0,0.72714702]
[1757165079350,1.23307768,110960.0,110950.0,0.47714702]
[1757165081151,0.49915768,110960.0,110950.0,0.47714702]
[1757165081353,1.31855768,110960.0,110950.0,0.47714702]
[1757165084846,1.31855768,110960.0,110950.0,0.06244934]
[1757165085044,1.31855768,110960.0,110950.0,0.47714702]
[1757165088354,0.90386,110960.0,110950.0,0.47714702]
[1757165088655,1.31855768,110960.0,110950.0,0.47714702]
[1757165090651,1.31855768,110960.0,110950.0,0.44946768]
[1757165090857,1.31855768,110960.0,110950.0,0.47714702]
[1757165093258,0.90386,110960.0,110950.0,0.47714702]
[1757165093459,1.31855768,110960.0,110950.0,0.47714702]
[1757165093758,0.49915768,110960.0,110950.0,0.47714702]
[1757165093958,1.31787768,110960.0,110950.0,0.47714702]
[1757165094854,0.49915768,110960.0,110950.0,0.47714702]
[1757165095054,1.29407768,110960.0,110950.0,0.47714702]
[1757165095957,0.49915768,110960.0,110950.0,0.47714702]
[1757165096161,1.29363768,110960.0,110950.0,0.47714702]
[1757165100162,0.08446,110960.0,110950.0,0.47714702]
[1757165100361,0.08078,110960.0,110950.0,0.79714702]
[1757165101565,0.08078,110960.0,110950.0,0.88726362]
[1757165102963,0.08078,110960.0,110950.0,0.89610299]
[1757165103667,0.08078,110960.0,110950.0,0.89710299]
[1757165105169,0.08078,110960.0,110950.0,0.48240531]
[1757165105368,0.08078,110960.0,110950.0,1.01067696]
[1757165106066,0.08078,110960.0,110950.0,0.89710299]
[1757165106564,0.08078,110960.0,110950.0,0.88826362]
[1757165110776,0.08078,110960.0,110950.0,0.79814702]
[1757165111070,0.49915768,110960.0,110950.0,0.79814702]
[1757165113375,0.49547768,110960.0,110950.0,0.79814702]
[1757165114870,0.49547768,110960.0,110950.0,0.77046768]
[1757165115177,0.49547768,110960.0,110950.0,0.79814702]
[1757165117176,0.49915768,110960.0,110950.0,0.79814702]
[1757165117376,0.49915768,110960.0,110950.0,1.61598702]
[1757165122079,0.49547768,110960.0,110950.0,1.61598702]
[1757165124580,0.49547768,110960.0,110950.0,1.58830768]
[1757165124783,0.49547768,110960.0,110950.0,1.61598702]
[1757165126781,0.49547768,110960.0,110950.0,1.20128934]
[1757165126983,0.49547768,110960.0,110950.0,1.61598702]
[1757165127583,0.49915768,110960.0,110950.0,0.79814702]
[1757165127784,0.08446,110960.0,110950.0,1.61578702]
[1757165127984,0.08446,110960.0,110950.0,1.72936099]
[1757165128886,0.08446,110960.0,110950.0,1.61578702]
[1757165129186,0.08446,110960.0,110950.0,0.79814702]
[1757165129384,0.49915768,110960.0,110950.0,1.61582702]
[1757165129584,0.08446,110960.0,110950.0,1.68328652]
[1757165130076,0.08446,110960.0,110950.0,1.31470331]
[1757165130284,0.08446,110960.0,110950.0,1.68328652]
[1757165133091,0.08078,110960.0,110950.0,1.68328652]
[1757165136386,0.08078,110960.0,110950.0,1.56971255]
[1757165139394,0.08078,110960.0,110950.0,1.31971255]
[1757165142494,0.08078,110960.0,110950.0,1.43328652]
[1757165144596,0.08078,110960.0,110950.0,1.40560718]
[1757165144790,0.08078,110960.0,110950.0,1.43328652]
[1757165145192,0.08446,110960.0,110950.0,1.43252652]
[1757165145492,0.08446,110960.0,110950.0,0.95028934]
[1757165145993,0.08446,110960.0,110950.0,0.13344934]
[1757165146297,0.08446,110960.0,110950.0,0.95028934]
[1757165146593,0.08446,110960.0,110950.0,1.06386331]
[1757165147494,0.7120086,110960.0,110950.0,1.06378331]
[1757165148198,0.34342539,110960.0,110950.0,1.06378331]
[1757165148598,0.34342539,110960.0,110950.0,0.24702331]
[1757165149701,0.34342539,110960.0,110950.0,0.21934397]
[1757165149899,0.34342539,110960.0,110950.0,0.24702331]
[1757165151704,0.34342539,110960.0,110950.0,0.21934397]
[1757165152001,0.34342539,110960.0,110950.0,0.24702331]
[1757165152201,0.34342539,110960.0,110950.0,0.13344934]
[1757165157813,0.34342539,110960.0,110950.0,0.10577]
[1757165158110,0.34342539,110960.0,110950.0,0.13344934]
[1757165165512,0.33446,110960.0,110950.0,0.13344934]
[1757165168410,0.33446,110960.0,110950.0,0.13244934]
[1757165168613,0.33446,110960.0,110950.0,0.13344934]
[1757165169112,0.34349495,110960.0,110950.0,0.13344934]
[1757165170710,0.34349495,110960.0,110950.0,0.13244934]
[1757165170916,0.34349495,110960.0,110950.0,0.13344934]
[1757165176718,0.34349495,110960.0,110950.0,0.24702331]
[1757165182317,0.46207816,110960.0,110950.0,0.13344934]
[1757165183320,0.09349495,110960.0,110950.0,0.13344934]
[1757165186524,0.09349495,110960.0,110950.0,0.15161871]
[1757165188322,0.46207816,110960.0,110950.0,0.15161871]
[1757165190828,0.09349495,110960.0,110950.0,0.15161871]
[1757165191124,0.46207816,110960.0,110950.0,0.15161871]
[1757165191425,0.5082243,110960.0,110950.0,0.15161871]
[1757165202034,0.5082243,110960.0,110950.0,0.12393937]
[1757165202936,0.5082243,110960.0,110950.0,0.15161871]
[1757165206138,0.5082243,110960.0,110950.0,0.12393937]
[1757165206332,0.5082243,110960.0,110950.0,0.15161871]
[1757165208032,0.5082243,110960.0,110950.0,0.12393937]
[1757165208237,0.5082243,110960.0,110950.0,0.15161871]
[1757165209337,0.5082243,110960.0,110950.0,0.12393937]
[1757165209525,0.5082243,110960.0,110950.0,0.15161871]
[1757165210638,0.5082243,110960.0,110950.0,0.12393937]
[1757165210839,0.5082243,110960.0,110950.0,0.15161871]
[1757165214033,1.3241443,110960.0,110950.0,0.15161871]
[1757165215145,1.3241443,110960.0,110950.0,0.12393937]
[1757165215345,1.3241443,110960.0,110950.0,0.15161871]
[1757165218848,0.5082243,110960.0,110950.0,0.15161871]
[1757165219047,1.3241443,110960.0,110950.0,0.15161871]
[1757165219546,0.90941495,110960.0,110950.0,0.15161871]
[1757165219747,1.3241443,110960.0,110950.0,0.15161871]
[1757165220447,0.5082243,110960.0,110950.0,0.15161871]
[1757165220636,1.3241443,110960.0,110950.0,0.15161871]
[1757165220841,1.3241443,110960.0,110950.0,0.56634806]
[1757165223344,1.3241443,110960.0,110950.0,0.15161871]
[1757165223544,1.3241443,110960.0,110950.0,0.56634806]
[1757165224954,1.3241443,110960.0,110950.0,0.15161871]
[1757165225152,1.3241443,110960.0,110950.0,0.56634806]
[1757165225353,0.90941495,110960.0,110950.0,0.56634806]
[1757165225555,1.3241443,110960.0,110950.0,0.56634806]
[1757165226254,1.3241443,110960.0,110950.0,0.15161871]
[1757165228951,0.5082243,110960.0,110950.0,0.15161871]
[1757165229254,1.3241443,110960.0,110950.0,0.15161871]
[1757165229454,0.5082243,110960.0,110950.0,0.15161871]
[1757165229656,1.3241043,110960.0,110950.0,0.15161871]
[1757165229852,0.5082243,110960.0,110950.0,0.56634806]
[1757165230053,0.49918935,110960.0,110950.0,0.56634806]
[1757165230356,1.32427988,110960.0,110950.0,0.56634806]
[1757165231655,1.32427988,110960.0,110950.0,0.15161871]
[1757165231854,1.32427988,110960.0,110950.0,0.56634806]
[1757165232654,1.32427988,110960.0,110950.0,0.15161871]
[1757165232855,1.32427988,110960.0,110950.0,0.56634806]
[1757165235451,1.32427988,110960.0,110950.0,0.53866872]
[1757165235649,1.32427988,110960.0,110950.0,0.56634806]
[1757165236057,1.32427988,110960.0,110950.0,0.67992203]
[1757165240656,1.32427988,110960.0,110950.0,0.65224269]
[1757165240862,1.32427988,110960.0,110950.0,0.67992203]
[1757165243060,1.32427988,110960.0,110950.0,0.65224269]
[1757165243266,1.32427988,110960.0,110950.0,0.67992203]
[1757165244166,1.32427988,110960.0,110950.0,0.56634806]
[1757165248568,1.32427988,110960.0,110950.0,0.53866872]
[1757165248762,1.32427988,110960.0,110950.0,0.56634806]
[1757165251164,1.32427988,110960.0,110950.0,0.53866872]
[1757165251371,1.32427988,110960.0,110950.0,0.56634806]
[1757165251669,0.90955053,110960.0,110950.0,0.15161871]
[1757165255674,0.08446,110960.0,110950.0,0.15161871]
[1757165255972,0.90034,110960.0,110950.0,0.15161871]
[1757165256573,0.90034,110960.0,110950.0,0.26519268]
[1757165257463,0.90034,110960.0,110950.0,0.15161871]
[1757165260275,0.90954784,110960.0,110950.0,0.15161871]
[1757165262582,0.90954784,110960.0,110950.0,0.12393937]
[1757165262770,0.90954784,110960.0,110950.0,0.15161871]
[1757165268682,0.90954784,110960.0,110950.0,0.26519268]
[1757165273395,0.90954784,110960.0,110950.0,0.15161871]
[1757165273894,0.09366784,110960.0,110950.0,0.15161871]
[1757165274095,0.90950784,110960.0,110950.0,0.15161871]
[1757165274299,0.90950784,110960.0,110950.0,0.26519268]
[1757165274793,0.90950784,110960.0,110950.0,0.15161871]
[1757165275503,0.90950784,110960.0,110950.0,0.26519268]
[1757165276792,0.90950784,110960.0,110950.0,0.15161871]
[1757165277497,0.90950784,110960.0,110950.0,0.26519268]
[1757165281001,0.90950784,110960.0,110950.0,0.23751334]
[1757165281201,0.90950784,110960.0,110950.0,0.26519268]
[1757165282803,0.90950784,110960.0,110950.0,0.23751334]
[1757165283004,0.90950784,110960.0,110950.0,0.26519268]
[1757165285103,0.90950784,110960.0,110950.0,0.15161871]
[1757165293707,0.09366784,110960.0,110950.0,0.15161871]
[1757165293904,0.90946784,110960.0,110950.0,0.15161871]
[1757165295307,0.08446,110960.0,110950.0,0.15161871]
[1757165295502,0.90026,110960.0,110950.0,0.15161871]
[1757165296308,0.90947777,110960.0,110950.0,0.15161871]
[1757165297204,0.90947777,110960.0,110950.0,0.52023306]
[1757165297502,0.90947777,110960.0,110950.0,0.63380703]
[1757165298002,0.08446,110960.0,110950.0,0.63380703]
[1757165298201,0.90022,110960.0,110950.0,0.63380703]
[1757165298905,0.90022,110960.0,110950.0,0.52023306]
[1757165299405,0.90022,110960.0,110950.0,0.15161871]
[1757165300206,0.90905923,110960.0,110950.0,0.52023306]
[1757165305210,0.90905923,110960.0,110950.0,0.49255372]
[1757165305410,0.90905923,110960.0,110950.0,0.52023306]
[1757165307302,0.90905923,110960.0,110950.0,0.63380703]
[1757165309103,0.90905923,110960.0,110950.0,0.6336747]
[1757165310913,0.90905923,110960.0,110950.0,0.60599536]
[1757165311509,1.32373044,110960.0,110950.0,0.65205222]
[1757165312209,0.90905923,110960.0,110950.0,0.65205222]
[1757165312409,1.32373044,110960.0,110950.0,0.65205222]
[1757165314110,1.32373044,110960.0,110950.0,0.53847825]
[1757165315909,1.32373044,110960.0,110950.0,0.56615759]
[1757165316613,1.32373044,110960.0,110950.0,0.67973156]
[1757165317112,1.32373044,110960.0,110950.0,0.56615759]
[1757165317301,1.32373044,110960.0,110950.0,0.67973156]
[1757165318412,0.50797044,110960.0,110950.0,0.67973156]
[1757165318613,1.32365044,110960.0,110950.0,0.56615759]
[1757165320215,0.90897923,110960.0,110950.0,0.56615759]
[1757165321313,0.90897923,110960.0,110950.0,0.53847825]
[1757165321507,0.90897923,110960.0,110950.0,0.56615759]
[1757165324411,0.90897923,110960.0,110950.0,0.15148638]
[1757165324610,1.32365044,110960.0,110950.0,0.56615759]
[1757165326116,1.32365044,110960.0,110950.0,0.15148638]
[1757165326415,1.32365044,110960.0,110950.0,0.56615759]
[1757165329017,1.32365044,110960.0,110950.0,0.67973156]
[1757165335224,1.32365044,110960.0,110950.0,0.65205222]
[1757165335420,1.32365044,110960.0,110950.0,0.67973156]
[1757165336224,1.32365044,110960.0,110950.0,0.60973156]
[1757165337224,1.32365044,110960.0,110950.0,0.62973156]
[1757165341130,1.32365044,110960.0,110950.0,0.60205222]
[1757165341428,1.32365044,110960.0,110950.0,0.62973156]
[1757165342427,1.32365044,110960.0,110950.0,0.51615759]
[1757165351134,1.32365044,110960.0,110950.0,0.48847825]
[1757165351334,1.32365044,110960.0,110950.0,0.51615759]
[1757165352934,1.32365044,110960.0,110950.0,0.48847825]
[1757165353935,1.32365044,110960.0,110950.0,0.51615759]
[1757165355237,1.32365044,110960.0,110950.0,0.48847825]
[1757165355429,1.32365044,110960.0,110950.0,0.51615759]
[1757165362143,1.32365044,110960.0,110950.0,0.62973156]
[1757165369846,1.32365044,110960.0,110950.0,0.51615759]
[1757165370346,1.32365044,110960.0,110950.0,0.62973156]
[1757165370647,1.32365044,110960.0,110950.0,0.51615759]
[1757165371046,1.32365044,110960.0,110950.0,0.62973156]
[1757165371849,1.32365044,110960.0,110950.0,0.51615759]
[1757165373549,0.90897923,110960.0,110950.0,0.10148638]
[1757165384953,0.90897923,110960.0,110950.0,0.07380704]
[1757165386053,0.90897923,110960.0,110950.0,0.10148638]
[1757165392254,0.90897923,110960.0,110950.0,0.08148638]
[1757165400464,0.90897923,110960.0,110950.0,0.10148638]
[1757165401569,1.52760932,110960.0,110950.0,0.10148638]
[1757165401868,1.52760932,110960.0,110950.0,0.01903704]
[1757165407471,1.27760932,110960.0,110950.0,0.01903704]
[1757165408975,0.90897923,110960.0,110950.0,0.01903704]
[1757165409178,1.27760932,110960.0,110950.0,0.01903704]
[1757165416978,0.90897923,110960.0,110950.0,0.01903704]
[1757165417187,1.27760932,110960.0,110950.0,0.01903704]
[1757165422382,1.27760932,110960.0,110950.0,0.001]
[1757165423280,1.89623941,110960.0,110950.0,0.001]
[1757165423987,2.22623941,110960.0,110930.0,0.01345]
[1757165424175,0.37071009,110940.0,110930.0,0.11112934]
[1757165424378,1.18591009,110940.0,110930.0,0.11112934]
[1757165424588,1.18591009,110940.0,110930.0,0.13394934]
[1757165424892,1.18591009,110940.0,110930.0,0.02767934]
[1757165425187,1.18591009,110940.0,110920.0,0.01345]
[1757165425391,0.37071009,110930.0,110920.0,0.04112934]
[1757165427489,0.44131361,110930.0,110920.0,0.04312934]
[1757165428078,0.37071009,110930.0,110920.0,0.04312934]
[1757165430785,0.37071009,110930.0,110920.0,0.06594934]
[1757165431091,1.18595009,110930.0,110920.0,0.06594934]
[1757165431690,1.18595009,110930.0,110920.0,0.06794934]
[1757165432788,1.25871655,110930.0,110920.0,0.06794934]
[1757165435495,1.30508257,110930.0,110920.0,0.06794934]
[1757165438099,1.30512257,110930.0,110920.0,0.06794934]
[1757165443803,0.89012646,110930.0,110920.0,0.06794934]
[1757165444001,1.30512257,110930.0,110920.0,0.06794934]
[1757165448910,1.30512257,110930.0,110920.0,0.04027]
[1757165449311,1.67512257,110930.0,110920.0,0.04027]
[1757165449908,1.67512257,110930.0,110920.0,0.06794934]
[1757165456608,0.85984257,110930.0,110920.0,0.06794934]
[1757165456910,1.67508257,110930.0,110920.0,0.06794934]
[1757165457309,0.48984257,110930.0,110920.0,0.06794934]
[1757165457512,0.81984257,110930.0,110920.0,0.06794934]
[1757165457704,1.62508257,110930.0,110920.0,0.48294545]
[1757165459108,1.62508257,110930.0,110920.0,0.06794934]
[1757165460215,1.62508257,110930.0,110920.0,0.04027]
[1757165460510,1.62508257,110930.0,110920.0,0.06794934]
[1757165466911,1.62508257,110930.0,110920.0,0.04512934]
[1757165467116,1.62508257,110930.0,110920.0,0.03167934]
[1757165467317,1.62508257,110930.0,110920.0,0.03617934]
[1757165469211,1.21008646,110930.0,110920.0,0.03617934]
[1757165469513,1.62508257,110930.0,110920.0,0.03617934]
[1757165471313,1.21008646,110930.0,110920.0,0.03617934]
[1757165471514,1.62508257,110930.0,110920.0,0.03617934]
[1757165473813,1.62508257,110930.0,110920.0,0.0085]
[1757165474113,1.62508257,110930.0,110920.0,0.03617934]
[1757165474820,1.62508257,110930.0,110920.0,0.0085]
[1757165476122,1.62508257,110930.0,110920.0,0.03617934]
[1757165478216,1.21008646,110930.0,110920.0,0.03617934]
[1757165478518,1.62508257,110930.0,110920.0,0.03617934]
[1757165482517,0.39484646,110930.0,110920.0,0.48538545]
[1757165482728,1.19648646,110930.0,110920.0,0.48538545]
[1757165482925,0.93744646,110930.0,110920.0,0.73538545]
[1757165483224,0.89744646,110930.0,110920.0,0.73538545]
[1757165483424,1.24744646,110930.0,110920.0,0.73538545]
[1757165483613,1.66244257,110930.0,110920.0,0.73538545]
[1757165483817,1.31244257,110930.0,110920.0,0.73538545]
[1757165484021,0.89744646,110930.0,110920.0,0.73538545]
[1757165484226,1.31244257,110930.0,110920.0,0.73538545]
[1757165484726,1.31244257,110930.0,110920.0,0.39038934]
[1757165484926,0.89744646,110930.0,110920.0,0.80538545]
[1757165485127,1.31244257,110930.0,110920.0,0.80538545]
[1757165489340,0.89744646,110930.0,110920.0,0.80538545]
[1757165489737,1.31244257,110930.0,110920.0,0.80538545]
[1757165490032,0.0001,110940.0,110920.0,0.80538545]
[1757165490242,0.96446,110940.0,110930.0,0.47688545]
[1757165490449,0.96436,110940.0,110930.0,0.54688545]
[1757165490650,1.37935611,110940.0,110930.0,0.54688545]
[1757165491348,0.55707611,110940.0,110930.0,0.54688545]
[1757165491548,1.37971611,110940.0,110930.0,0.55138545]
[1757165492047,0.55707611,110940.0,110930.0,0.55138545]
[1757165492850,0.55707611,110940.0,110930.0,0.13638934]
[1757165493050,0.55707611,110940.0,110930.0,0.55138545]
[1757165495751,0.14208,110940.0,110930.0,0.55138545]
[1757165496052,0.55707611,110940.0,110930.0,0.55138545]
[1757165496952,0.55707611,110940.0,110930.0,0.13638934]
[1757165497154,0.55707611,110940.0,110930.0,0.55138545]
[1757165497447,0.14208,110940.0,110930.0,0.13638934]
[1757165497952,0.14208,110940.0,110930.0,0.13738934]
[1757165498953,0.14208,110940.0,110930.0,0.13838934]
[1757165509957,0.14208,110940.0,110930.0,0.11071]
[1757165510259,0.00208,110940.0,110930.0,0.11071]
[1757165510960,0.00208,110940.0,110930.0,0.13838934]
[1757165513258,0.00208,110940.0,110930.0,0.06838934]
[1757165515752,0.00208,110940.0,110930.0,0.18196331]
[1757165518060,0.00208,110940.0,110930.0,0.25196331]
[1757165518364,0.00208,110940.0,110930.0,0.62067443]
[1757165521460,0.00231524,110950.0,110940.0,0.03598]
[1757165521666,0.03221524,110950.0,110940.0,0.10598]
[1757165521866,0.03221524,110950.0,110940.0,0.13365934]
[1757165522768,0.03221524,110950.0,110940.0,0.13815934]
[1757165523166,0.03321524,110950.0,110940.0,0.13815934]
[1757165524863,0.00321524,110950.0,110940.0,0.13815934]
[1757165528565,0.00321524,110950.0,110940.0,0.50687046]
[1757165528767,0.00113524,110950.0,110940.0,0.50687046]
[1757165529869,0.00113524,110950.0,110940.0,0.75687046]
[1757165531362,0.00113524,110950.0,110940.0,0.76594295]
[1757165531564,0.00113524,110950.0,110940.0,0.75687046]
[1757165532170,0.00013524,110950.0,110940.0,0.75687046]
[1757165532568,0.00013524,110950.0,110940.0,0.75787046]
[1757165534867,0.00013524,110950.0,110940.0,0.73019112]
[1757165535074,0.00013524,110950.0,110940.0,0.75787046]
[1757165536176,0.00013524,110950.0,110940.0,0.77627201]
[1757165537176,0.00013524,110950.0,110940.0,0.88984598]
[1757165541971,0.00013524,110950.0,110940.0,0.52113486]
[1757165542173,0.00013524,110950.0,110940.0,0.88984598]
[1757165542778,0.00013524,110950.0,110940.0,0.77627201]
[1757165544879,0.00221524,110950.0,110940.0,0.40756089]
[1757165545072,0.00221524,110950.0,110940.0,1.59683201]
[1757165546580,0.00221524,110950.0,110940.0,0.77627201]
[1757165553780,0.00221524,110950.0,110940.0,0.40756089]
[1757165554294,0.00221524,110950.0,110940.0,0.77627201]
[1757165555895,0.00221524,110950.0,110940.0,1.59647201]
[1757165556197,0.00221524,110950.0,110940.0,0.77627201]
[1757165556984,0.00221524,110950.0,110940.0,0.74859267]
[1757165557894,0.00221524,110950.0,110940.0,0.77627201]
[1757165559393,0.00221524,110950.0,110940.0,0.52627201]
[1757165559584,0.00221524,110950.0,110940.0,0.57229013]
[1757165561395,0.00221524,110950.0,110940.0,0.15756089]
[1757165561597,0.00221524,110950.0,110940.0,0.57229013]
[1757165562195,0.41694448,110950.0,110940.0,0.15756089]
[1757165562393,0.66694448,110950.0,110940.0,0.15756089]
[1757165565601,0.25221524,110950.0,110940.0,0.15756089]
[1757165565804,0.66694448,110950.0,110940.0,0.15756089]
[1757165566204,0.66694448,110950.0,110940.0,0.13915934]
[1757165574205,1.08167372,110950.0,110940.0,0.0055]
[1757165576006,1.08167372,110950.0,110940.0,0.0045]
[1757165589521,0.25221524,110950.0,110940.0,0.0045]
[1757165589726,1.90095372,110950.0,110940.0,0.0045]
[1757165592520,0.66694448,110950.0,110940.0,0.0045]
[1757165592713,1.48638448,110950.0,110940.0,0.04002]
[1757165593217,0.66694448,110950.0,110940.0,0.04002]
[1757165593520,1.48634448,110950.0,110940.0,0.04002]
[1757165594721,0.66694448,110950.0,110940.0,0.04002]
[1757165594923,1.48638448,110950.0,110940.0,0.04002]
[1757165595720,1.48638448,110950.0,110940.0,0.01828]
[1757165596016,0.66694448,110950.0,110940.0,0.04019]
[1757165596222,1.48646448,110950.0,110940.0,0.04019]
[1757165600421,1.48646448,110950.0,110940.0,0.01828]
[1757165600722,0.66694448,110950.0,110940.0,0.01828]
[1757165600924,1.48626448,110950.0,110940.0,0.04019]
[1757165613232,0.66694448,110950.0,110940.0,0.04019]
[1757165613422,1.48554448,110950.0,110940.0,0.04019]
[1757165615431,0.25221524,110950.0,110940.0,0.04019]
[1757165615635,1.23550448,110950.0,110940.0,0.4730068]
[1757165615938,1.23550448,110950.0,110940.0,0.75068614]
[1757165619542,1.18947553,110950.0,110940.0,0.0859569]
[1757165621942,1.18947553,110950.0,110940.0,0.05827756]
[1757165625545,0.82077524,110950.0,110940.0,0.05827756]
[1757165625733,1.18947553,110950.0,110940.0,0.05827756]
[1757165627744,0.37091553,110950.0,110940.0,0.12827756]
[1757165627946,1.18915553,110950.0,110940.0,0.12827756]
[1757165629043,0.37091553,110950.0,110940.0,0.12827756]
[1757165629245,1.18907553,110950.0,110940.0,0.12827756]
[1757165630848,0.82037524,110950.0,110940.0,0.12827756]
[1757165631144,1.18899553,110950.0,110940.0,0.12827756]
[1757165631848,1.18887553,110950.0,110940.0,0.12827756]
[1757165632047,1.18887553,110950.0,110940.0,0.1559569]
[1757165632852,0.37091553,110950.0,110940.0,0.1559569]
[1757165633149,1.18883553,110950.0,110940.0,0.1559569]
[1757165636641,1.18883553,110950.0,110940.0,0.0859569]
[1757165638254,1.18883553,110950.0,110940.0,0.05827756]
[1757165638555,1.18883553,110950.0,110940.0,0.0859569]
[1757165644462,1.18855553,110950.0,110940.0,0.0859569]
[1757165648159,0.81985524,110950.0,110940.0,0.0859569]
[1757165648559,1.18855553,110950.0,110940.0,0.0859569]
[1757165650162,0.81985524,110950.0,110940.0,0.0859569]
[1757165650358,1.18855553,110950.0,110940.0,0.0859569]
[1757165654765,0.81985524,110950.0,110940.0,0.0859569]
[1757165655061,1.18827553,110950.0,110940.0,0.0859569]
[1757165657363,1.18823553,110950.0,110940.0,0.0859569]
[1757165665271,1.18823553,110950.0,110940.0,0.1059569]
[1757165665465,1.18819553,110950.0,110940.0,0.0859569]
[1757165668277,0.81949524,110950.0,110940.0,0.0859569]
[1757165668478,1.18819553,110950.0,110940.0,0.0859569]
[1757165668977,0.00221524,110950.0,110940.0,0.1559569]
[1757165669179,1.18819553,110950.0,110940.0,0.1559569]
[1757165679989,1.18819553,110950.0,110940.0,0.12827756]
[1757165680490,0.81949524,110950.0,110940.0,0.12827756]
[1757165680686,1.18819553,110950.0,110940.0,0.12827756]
[1757165680887,1.18819553,110950.0,110940.0,0.1559569]
[1757165681486,1.23429578,110950.0,110940.0,0.1559569]
[1757165683589,1.23429578,110950.0,110940.0,0.12827756]
[1757165683788,1.23429578,110950.0,110940.0,0.1559569]
[1757165693994,0.41701578,110950.0,110940.0,0.1559569]
[1757165694198,1.23425578,110950.0,110940.0,0.1559569]
[1757165698604,0.81945524,110950.0,110940.0,0.1559569]
[1757165698806,1.23425578,110950.0,110940.0,0.1559569]
[1757165700104,0.81945524,110950.0,110940.0,0.1559569]
[1757165700305,1.23425578,110950.0,110940.0,0.1559569]
[1757165704711,1.23425578,110950.0,110940.0,0.12827756]
[1757165706006,1.23425578,110950.0,110940.0,0.1559569]
[1757165711109,0.41701578,110950.0,110940.0,0.1559569]
[1757165711304,0.81937524,110950.0,110940.0,0.57075744]
[1757165712316,1.23417578,110950.0,110940.0,0.57075744]
[1757165716125,1.23417578,110950.0,110940.0,0.1559569]
[1757165716323,1.23417578,110950.0,110940.0,0.57075744]
[1757165716825,1.23417578,110950.0,110940.0,0.1559569]
[1757165717026,1.23417578,110950.0,110940.0,0.57075744]
[1757165724731,0.41701578,110950.0,110940.0,0.57075744]
[1757165724932,1.23409578,110950.0,110940.0,0.57075744]
[1757165735933,1.23409578,110950.0,110940.0,0.5430781]
[1757165736529,1.23409578,110950.0,110940.0,0.52499054]
[1757165737025,0.41701578,110950.0,110940.0,0.55266988]
[1757165737225,0.00221524,110950.0,110940.0,0.96747042]
[1757165737428,0.7568,110960.0,110950.0,0.01262]
[1757165737629,0.7567,110960.0,110950.0,0.47774988]
[1757165737934,1.17150054,110960.0,110950.0,0.47774988]
[1757165738937,1.17150054,110960.0,110950.0,0.48224988]
[1757165739130,1.31462054,110960.0,110950.0,0.48224988]
[1757165740435,0.89982,110960.0,110950.0,0.48224988]
[1757165740636,1.31462054,110960.0,110950.0,0.48224988]
[1757165741440,1.31458054,110960.0,110950.0,0.48224988]
[1757165742540,0.49766054,110960.0,110950.0,0.48224988]
[1757165742740,1.31458054,110960.0,110950.0,0.06744934]
[1757165743537,1.26842038,110960.0,110950.0,0.06744934]
[1757165747345,0.45150038,110960.0,110950.0,0.06744934]
[1757165747537,1.19026038,110960.0,110950.0,0.06744934]
[1757165754948,0.82162,110960.0,110950.0,0.06744934]
[1757165755144,1.19026038,110960.0,110950.0,0.06744934]
[1757165757953,1.19026038,110960.0,110950.0,0.03977]
[1757165758952,1.19026038,110960.0,110950.0,0.06744934]
[1757165761256,1.19026038,110960.0,110950.0,0.03977]
[1757165761551,1.19026038,110960.0,110950.0,0.06744934]
[1757165762653,1.19026038,110960.0,110950.0,0.03977]
[1757165762952,1.19026038,110960.0,110950.0,0.06744934]
[1757165771163,0.82162,110960.0,110950.0,0.06744934]
[1757165771363,1.19026038,110960.0,110950.0,0.06744934]
[1757165773859,1.19026038,110960.0,110950.0,0.03977]
[1757165774967,1.19026038,110960.0,110950.0,0.06744934]
[1757165777165,0.82162,110960.0,110950.0,0.06744934]
[1757165777364,1.19026038,110960.0,110950.0,0.06744934]
[1757165777766,1.50026038,110960.0,110950.0,0.06744934]
[1757165779464,1.50026038,110960.0,110950.0,0.03977]
[1757165779667,1.50026038,110960.0,110950.0,0.06744934]
[1757165786576,1.50026038,110960.0,110950.0,0.03977]
[1757165786870,1.50026038,110960.0,110950.0,0.06744934]
[1757165790875,1.13162,110960.0,110950.0,0.06744934]
[1757165791171,1.50026038,110960.0,110950.0,0.06744934]
[1757165797878,1.50026038,110960.0,110950.0,0.03977]
[1757165798987,1.50026038,110960.0,110950.0,0.06744934]
[1757165802789,0.76150038,110960.0,110950.0,0.06744934]
[1757165802989,1.57846038,110960.0,110950.0,0.06744934]
[1757165803678,0.76150038,110960.0,110950.0,0.06744934]
[1757165803883,1.57842038,110960.0,110950.0,0.06744934]
[1757165805490,1.62451344,110960.0,110950.0,0.06744934]
[1757165807594,1.62451344,110960.0,110950.0,0.03977]
[1757165807892,1.62451344,110960.0,110950.0,0.06744934]
[1757165808996,1.62451344,110960.0,110950.0,0.03977]
[1757165809196,1.62451344,110960.0,110950.0,0.06744934]
[1757165810591,1.62451344,110960.0,110950.0,0.03977]
[1757165810795,1.63275344,110960.0,110950.0,0.06744934]
[1757165814499,1.21802,110960.0,110950.0,0.06744934]
[1757165814802,1.63275344,110960.0,110950.0,0.04479934]
[1757165815002,1.63275344,110960.0,110950.0,0.06654934]
[1757165823708,1.88275344,110960.0,110950.0,0.0045]
[1757165823907,2.29748688,110960.0,110950.0,0.0045]
[1757165828612,1.47232688,110960.0,110950.0,0.0045]
[1757165828818,1.88275344,110960.0,110950.0,0.0045]
[1757165829219,1.57275344,110960.0,110950.0,0.0045]
[1757165830018,0.74759344,110960.0,110950.0,0.0045]
[1757165830217,0.9079,110960.0,110950.0,0.06711934]
[1757165830521,1.32263344,110960.0,110950.0,0.06711934]
[1757165830918,1.32299344,110960.0,110950.0,0.13711934]
[1757165832115,0.49759344,110960.0,110950.0,0.13711934]
[1757165832320,1.32283344,110960.0,110950.0,0.13711934]
[1757165833022,1.32275344,110960.0,110950.0,0.13711934]
[1757165838518,0.49759344,110960.0,110950.0,0.13711934]
[1757165838720,1.32231344,110960.0,110950.0,0.13711934]
[1757165840921,1.32231344,110960.0,110950.0,0.10944]